[Event "Amsterdam Chess Open 2024"]
[Site "Amsterdam"]
[Date "2024.11.02"]
[Round "3.1"]
[White "Sharan, Rao"]
[Black "Stanojevic, Ilija"]
[Result "1/2-1/2"]
[ECO "A05"]
[WhiteElo "2401"]
[BlackElo "2197"]
[Annotator "TA"]
[PlyCount "70"]
[EventDate "2024.10.31"]
[EventType "swiss"]
[EventCountry "NED"]
[SourceTitle "playchess.com"]
[Source "ChessBase"]
[SourceQuality "1"]
[TimeControl "5400+30"]

{[%evp 9,70,0,0,0,6,17,14,11,30,21,18,20,49,57,51,56,56,38,79,93,94,78,147,145,165,148,161,135,201,233,319,137,210,245,522,522,531,540,552,0,0,-102,-103,-33,-29,-27,-33,-58,0,0,0,-988,0,0,0,0,0,0,0,0,0,0,0]} 1. Nf3 {[%emt 0:00:04]} Nf6 {[%emt 0:00:33]} 2. e3 {[%emt 0:00:26]} g6 {[%emt 0:00:57]} 3. b4 {[%emt 0:00:06]} Bg7 {[%emt 0:00:45]} 4. Bb2 {[%emt 0:00:05]} O-O {[%emt 0:00:40]} 5. Be2 {[%emt 0:00:33]} d6 {[%emt 0:00:37]} 6. d4 {[%emt 0:00:12]} Nbd7 {[%emt 0:01:17][%cal Oe7e5]} 7. O-O {[%emt 0:00:07]} Re8 {[%emt 0:00:01]} 8. c4 {[%emt 0:00:34]} c6 {[%emt 0:01:33]} 9. Nc3 {[%emt 0:01:46]} e5 {[%emt 0:04:33]} 10. Qc2 {[%emt 0:09:15]} e4 {[%emt 0:06:57]} 11. Nd2 {[%emt 0:00:50]} Qe7 {[%emt 0:01:38]} 12. Rfd1 {[%emt 0:00:40]} h5 {[%emt 0:02:43]} 13. Rac1 {[%emt 0:04:45]} h4 {[%emt 0:18:44]} 14. h3 {[%emt 0:00:32]} Nf8 {[%emt 0:16:57]} 15. d5 {[%emt 0:00:54]} g5 {[%emt 0:11:13]} (15... cxd5 $142 16. Nxd5 Nxd5 17. cxd5 Bxb2 18. Qxb2 Bf5) 16. dxc6 $16 {[%emt 0:09:45]} bxc6 {[%emt 0:00:27]} 17. b5 {[%emt 0:00:26]} c5 {[%emt 0:06:21]} 18. Nb3 {[%emt 0:12:24]} a5 {[%emt 0:06:04]} (18... g4 $16) 19. Na4 $18 {[%emt 0:12:00] Hoping for Qd2.} Bf5 {[%emt 0:04:22]} 20. Rd2 {[%emt 0:02:44]} (20. Qd2 $18 {is more deadly.} Rad8 21. Nxa5) 20... Ng6 {[%emt 0:07:34]} (20... N8d7 $16) 21. Rcd1 {[%emt 0:01:15]} g4 $2 {[%emt 0:02:17] [#]} (21... Ne5 {was worth a try.} 22. Bxe5 (22. Rxd6 Nd3 $18) 22... Qxe5 23. Rxd6 g4) 22. Bxf6 {[%emt 0:01:49]} (22. Rxd6 gxh3 23. gxh3 (23. Naxc5 a4 $15) (23. Nbxc5 hxg2 24. Kxg2 h3+ 25. Kh1 Ng4 $17) 23... Bxh3 $16) 22... Qxf6 {[%emt 0:01:52]} 23. hxg4 {[%emt 0:00:18]} (23. Bxg4 Bxg4 24. hxg4 Qe6 $18) 23... h3 {[%emt 0:02:26]} 24. gxh3 {[%emt 0:03:45]} (24. gxf5 $18 Qxf5 25. g3 (25. Rxd6 hxg2 26. Kxg2 Nh4+ 27. Kf1 Qh3+ 28. Ke1 Qf5 $18)) 24... Qh4 $1 $11 {[%emt 0:00:59]} 25. Kg2 {[%emt 0:03:18] [#]} (25. Rxd6 $2 {too greedy.} Qxh3 26. Rxg6 (26. gxf5 {leads to mate.} Nh4) 26... Bxg6 $19) (25. gxf5 $11 Qxh3 26. fxg6) 25... Nf4+ $1 $17 {[%emt 0:00:20][%mdl 512]} 26. exf4 {[%emt 0:02:37]} e3 {[%emt 0:00:04]} 27. Bd3 $1 {[%emt 0:00:02]} Bxg4 {[%emt 0:01:12]} 28. hxg4 {[%emt 0:03:03]} Qxg4+ {[%emt 0:00:13]} 29. Kf1 {[%emt 0:00:02]} Qh3+ {[%emt 0:00:52]} 30. Ke1 $2 {[%emt 0:09:23][%mdl 8192]} (30. Kg1 $11 exd2 31. Nxd2 (31. Qxd2 $2 {loses.} Qg4+ 32. Kf1 Qf3 $19) 31... Qg4+ 32. Kf1 Qh3+ 33. Kg1 Qg4+ 34. Kf1 Qh3+ 35. Kg1) 30... exf2+ $2 {[%emt 0:00:21]} (30... Qg2 $19 {[%csl Gg2][%cal Re3f2]} 31. Bh7+ Kf8) 31. Kxf2 $11 {[%emt 0:00:02] The position is equal.} Qh2+ {[%emt 0:00:09]} 32. Kf1 {[%emt 0:01:12]} Qh1+ {[%emt 0:00:05]} 33. Kf2 {[%emt 0:00:03]} Qh2+ {[%emt 0:00:04]} 34. Kf1 {[%emt 0:00:15]} Qh1+ {[%emt 0:00:05]} 35. Kf2 {[%emt 0:00:02]} Qh2+ {[%emt 0:00:36] Quite a comeback for White.   Weighted Error Value: White=0.53/Black=0.44.  Loses game:     	White=1     	---        Missed win:     	White=2     	Black=1      Mistake:       	White=1     	Black=4      Inaccurate:     	---       	Black=4      OK:         	White=9     	Black=9      Best:        	White=3     	Black=1      Strong:       	White=1     	Black=1      Brilliant:      	---       	Black=1} 1/2-1/2

[Event "Amsterdam Chess Open 2024"]
[Site "Amsterdam"]
[Date "2024.11.02"]
[Round "3.2"]
[White "Ratsma, Midas"]
[Black "Johannesson, Oliver"]
[Result "1-0"]
[ECO "B32"]
[WhiteElo "2280"]
[BlackElo "2216"]
[Annotator "RC"]
[PlyCount "109"]
[EventDate "2024.10.31"]
[EventType "swiss"]
[EventCountry "NED"]
[SourceTitle "playchess.com"]
[Source "ChessBase"]
[SourceQuality "1"]
[TimeControl "5400+30"]

1. e4 {[%emt 0:00:02]} c5 {[%emt 0:00:06]} 2. Nf3 {[%emt 0:00:06]} Nc6 {[%emt 0:00:22]} 3. d4 {[%emt 0:00:07]} cxd4 {[%emt 0:00:07]} 4. Nxd4 {[%emt 0:00:07]} e5 {[%emt 0:00:25]} 5. Nb5 {[%emt 0:00:19]} d6 {[%emt 0:00:10]} 6. N1c3 {[%emt 0:00:17]} a6 {[%emt 0:00:08]} 7. Na3 {[%emt 0:00:06]} Be7 {[%emt 0:00:30]} 8. Nc4 {[%emt 0:00:37]} b5 {[%emt 0:00:58]} 9. Ne3 {[%emt 0:00:25]} Nf6 {[%emt 0:00:13]} 10. Bd3 {[%emt 0:01:09]} O-O {[%emt 0:15:13]} 11. O-O {[%emt 0:00:05]} Be6 {[%emt 0:07:03]} 12. a4 {[%emt 0:03:36]} Nb4 {[%emt 0:13:16]} 13. Be2 {[%emt 0:07:09]} Qb6 {[%emt 0:05:02]} 14. axb5 {[%emt 0:13:41]} axb5 {[%emt 0:01:59]} 15. Rxa8 {[%emt 0:00:12]} Rxa8 {[%emt 0:00:02]} 16. Bxb5 {[%emt 0:01:18]} Nxe4 {[%emt 0:16:32]} 17. Nxe4 {[%emt 0:31:51]} Qxb5 {[%emt 0:00:26]} 18. Nxd6 {[%emt 0:00:23]} Qd7 {[%emt 0:05:09]} 19. Qf3 {[%emt 0:11:28]} Ra1 {[%emt 0:03:00]} 20. Ndc4 {[%emt 0:03:20]} Bxc4 {[%emt 0:09:17]} 21. Nxc4 {[%emt 0:00:06]} Nxc2 {[%emt 0:00:45]} 22. Nxe5 {[%emt 0:06:00]} Qe6 {[%emt 0:00:50]} 23. Nc6 {[%emt 0:02:03]} Bf8 {[%emt 0:01:37]} 24. Qc3 {[%emt 0:01:37]} Qe2 {[%emt 0:06:17]} 25. b3 {[%emt 0:05:08]} h6 {[%emt 0:03:49]} 26. Nd4 {[%emt 0:03:03]} Nxd4 {[%emt 0:04:22]} 27. Qxa1 {[%emt 0:00:40]} Qd3 {[%emt 0:01:10]} 28. Be3 {[%emt 0:01:53]} Ne2+ {[%emt 0:02:08]} 29. Kh1 {[%emt 0:00:05]} Qxb3 {[%emt 0:00:20]} 30. Rb1 {[%emt 0:01:18]} Qc4 {[%emt 0:00:30]} 31. Rb8 {[%emt 0:00:44]} Nf4 {[%emt 0:02:27]} 32. Qc1 {[%emt 0:03:04]} Qxc1+ {[%emt 0:00:38]} 33. Bxc1 {[%emt 0:00:04]} Ne6 {[%emt 0:00:11]} 34. Ba3 {[%emt 0:00:14]} h5 {[%emt 0:00:55]} 35. f4 {[%emt 0:02:27]} g6 {[%emt 0:00:02]} 36. g3 {[%emt 0:00:35]} Kg7 {[%emt 0:00:10]} 37. Bxf8+ {[%emt 0:00:13]} Nxf8 {[%emt 0:00:01]} 38. Kg2 {[%emt 0:00:08]} Nd7 {[%emt 0:00:31]} 39. Ra8 {[%emt 0:00:09]} Nf6 {[%emt 0:00:33]} 40. Kf3 {[%emt 0:00:13]} Ng4 {[%emt 0:00:45]} 41. h3 {[%emt 0:00:17]} Nf6 {[%emt 0:00:12]} 42. Rd8 {[%emt 0:00:12]} Nh7 {[%emt 0:00:22]} 43. Ke4 {[%emt 0:00:47]} Kf6 {[%emt 0:00:52]} 44. Re8 {[%emt 0:00:58]} Kg7 {[%emt 0:00:43]} 45. Ke5 {[%emt 0:00:06]} Nf6 {[%emt 0:00:42]} 46. Rd8 {[%emt 0:00:59]} Ng8 {[%emt 0:01:09]} 47. f5 {[%emt 0:00:43]} gxf5 {[%emt 0:00:47]} 48. Kxf5 {[%emt 0:00:14]} h4 {[%emt 0:00:37]} 49. g4 {[%emt 0:01:21]} Ne7+ {[%emt 0:00:17]} 50. Kg5 {[%emt 0:00:36]} Ng6 {[%emt 0:00:12]} 51. Re8 {[%emt 0:00:41]} f6+ {[%emt 0:00:20]} 52. Kh5 {[%emt 0:00:25]} Kf7 {[%emt 0:00:30]} 53. Ra8 {[%emt 0:00:14]} Nf4+ {[%emt 0:00:00]} 54. Kxh4 {[%emt 0:00:07]} Kg6 {[%emt 0:00:01]} 55. Ra6 {[%emt 0:00:31]} 1-0

[Event "Amsterdam Chess Open 2024"]
[Site "Amsterdam"]
[Date "2024.11.02"]
[Round "3.2"]
[White "Ratsma, Midas"]
[Black "Johannesson, Oliver"]
[Result "*"]
[ECO "B32"]
[WhiteElo "2280"]
[BlackElo "2216"]
[Annotator "RC"]
[PlyCount "34"]
[EventDate "2024.10.31"]
[EventType "swiss"]
[EventCountry "NED"]
[SourceTitle "playchess.com"]
[Source "ChessBase"]
[SourceQuality "1"]
[TimeControl "5400+30"]

1. e4 {[%emt 0:00:02]} c5 {[%emt 0:00:06]} 2. Nf3 {[%emt 0:00:06]} Nc6 {[%emt 0:00:22]} 3. d4 {[%emt 0:00:07]} cxd4 {[%emt 0:00:07]} 4. Nxd4 {[%emt 0:00:07]} e5 {[%emt 0:00:25]} 5. Nb5 {[%emt 0:00:19]} d6 {[%emt 0:00:10]} 6. N1c3 {[%emt 0:00:17]} a6 {[%emt 0:00:08]} 7. Na3 {[%emt 0:00:06]} Be7 {[%emt 0:00:30]} 8. Nc4 {[%emt 0:00:37]} b5 {[%emt 0:00:58]} 9. Ne3 {[%emt 0:00:25]} Nf6 {[%emt 0:00:13]} 10. Bd3 {[%emt 0:01:09]} O-O {[%emt 0:15:13]} 11. O-O {[%emt 0:00:05]} Be6 {[%emt 0:07:03]} 12. a4 {[%emt 0:03:36]} Nb4 {[%emt 0:13:16]} 13. Be2 {[%emt 0:07:09]} Qb6 {[%emt 0:05:02]} 14. axb5 {[%emt 0:13:41]} axb5 {[%emt 0:01:59]} 15. Rxa8 {[%emt 0:00:12]} Rd8 {[%emt 0:00:02]} 16. Rb8 Rxb8 {[%emt 0:00:30]} 17. Bxb5 {[%emt 0:01:48]} Ra8 {[%emt 0:16:32]} *

[Event "Amsterdam Chess Open 2024"]
[Site "Amsterdam"]
[Date "2024.11.02"]
[Round "3.3"]
[White "Van Baar, Esper"]
[Black "Van Doren, Bas"]
[Result "1-0"]
[ECO "A35"]
[WhiteElo "2219"]
[BlackElo "2147"]
[Annotator "RC"]
[PlyCount "97"]
[EventDate "2024.10.31"]
[EventType "swiss"]
[EventCountry "NED"]
[SourceTitle "playchess.com"]
[Source "ChessBase"]
[SourceQuality "1"]
[TimeControl "5400+30"]

1. Nf3 {[%emt 0:01:48]} c5 {[%emt 0:01:09]} 2. c4 {[%emt 0:01:04]} Nc6 {[%emt 0:01:22]} 3. Nc3 {[%emt 0:00:07]} g6 {[%emt 0:00:33]} 4. e3 {[%emt 0:00:57]} Nf6 {[%emt 0:03:43]} 5. d4 {[%emt 0:01:19]} cxd4 {[%emt 0:03:16]} 6. exd4 {[%emt 0:00:23]} Bg7 {[%emt 0:03:07]} 7. d5 {[%emt 0:03:13]} Nb8 {[%emt 0:03:29]} 8. Be2 {[%emt 0:02:38]} d6 {[%emt 0:00:27]} 9. h3 {[%emt 0:01:12]} Nbd7 {[%emt 0:03:33]} 10. Be3 {[%emt 0:01:37]} a5 {[%emt 0:04:14]} 11. O-O {[%emt 0:01:04]} O-O {[%emt 0:01:55]} 12. Bd3 {[%emt 0:04:15]} Nb6 {[%emt 0:07:32]} 13. Rc1 {[%emt 0:05:57]} e5 {[%emt 0:06:17]} 14. dxe6 {[%emt 0:00:54]} Bxe6 {[%emt 0:00:12]} 15. b3 {[%emt 0:02:25]} d5 {[%emt 0:04:16]} 16. c5 {[%emt 0:05:26]} Nc8 {[%emt 0:03:41]} 17. Bd4 {[%emt 0:02:43]} Ne7 {[%emt 0:01:24]} 18. Na4 {[%emt 0:05:42]} Nc6 {[%emt 0:02:38]} 19. Nb6 {[%emt 0:10:49]} Rb8 {[%emt 0:00:51]} 20. Be3 {[%emt 0:05:24]} Qc7 {[%emt 0:17:30]} 21. Bb1 {[%emt 0:05:55]} Rbd8 {[%emt 0:01:43]} 22. Nd4 {[%emt 0:00:12]} Qe5 {[%emt 0:04:20]} 23. Re1 {[%emt 0:02:50]} Ne4 {[%emt 0:00:55]} 24. Nf3 {[%emt 0:08:19]} Qh5 {[%emt 0:02:03]} 25. Nd4 {[%emt 0:03:44]} Nxd4 {[%emt 0:03:09]} 26. Bxd4 {[%emt 0:00:15]} Qg5 {[%emt 0:02:33]} 27. Bxg7 {[%emt 0:03:32]} Kxg7 {[%emt 0:05:45]} 28. Qd4+ {[%emt 0:01:34]} Kg8 {[%emt 0:01:30]} 29. Qe3 {[%emt 0:01:13]} Qxe3 {[%emt 0:01:53]} 30. Rxe3 {[%emt 0:00:18]} Rfe8 {[%emt 0:03:20]} 31. Bxe4 {[%emt 0:05:55]} dxe4 {[%emt 0:00:15]} 32. Rxe4 {[%emt 0:00:05]} Rd2 {[%emt 0:00:14]} 33. Ra4 {[%emt 0:00:03]} Bf5 {[%emt 0:01:16]} 34. Nc4 {[%emt 0:00:19]} Rd4 {[%emt 0:00:39]} 35. Rxa5 {[%emt 0:02:10]} Re2 {[%emt 0:00:14]} 36. Ra7 {[%emt 0:02:48]} Be4 {[%emt 0:01:30]} 37. a4 {[%emt 0:04:57]} Bd5 {[%emt 0:01:14]} 38. Ra8+ {[%emt 0:00:21]} Kg7 {[%emt 0:00:05]} 39. Rd8 {[%emt 0:00:05]} Ree4 {[%emt 0:02:34]} 40. Rc3 {[%emt 0:02:43]} Re1+ {[%emt 0:01:14]} 41. Kh2 {[%emt 0:00:03]} Red1 {[%emt 0:01:49]} 42. Ne3 {[%emt 0:00:25]} Bc6 {[%emt 0:00:24]} 43. Rxd4 {[%emt 0:00:37]} Rxd4 {[%emt 0:00:01]} 44. Nc4 {[%emt 0:00:34]} h5 {[%emt 0:00:44]} 45. Na5 {[%emt 0:03:30]} Bd5 {[%emt 0:00:02]} 46. c6 {[%emt 0:00:18]} bxc6 {[%emt 0:00:06]} 47. Nxc6 {[%emt 0:00:01]} Rd2 {[%emt 0:00:36]} 48. f3 {[%emt 0:01:59]} Ra2 {[%emt 0:00:46]} 49. Nb4 {[%emt 0:00:00]} 1-0

[Event "Amsterdam Chess Open 2024"]
[Site "Amsterdam"]
[Date "2024.11.02"]
[Round "3.4"]
[White "Stojiljkovic, Stefan"]
[Black "Brookes, Christopher"]
[Result "1/2-1/2"]
[ECO "B31"]
[WhiteElo "2122"]
[BlackElo "2218"]
[Annotator "RC"]
[PlyCount "77"]
[EventDate "2024.10.31"]
[EventType "swiss"]
[EventCountry "NED"]
[SourceTitle "playchess.com"]
[Source "ChessBase"]
[SourceQuality "1"]
[TimeControl "5400+30"]

1. e4 {[%emt 0:00:05]} c5 {[%emt 0:00:17]} 2. Nf3 {[%emt 0:00:10]} Nc6 {[%emt 0:00:23]} 3. Bb5 {[%emt 0:00:18]} g6 {[%emt 0:00:32]} 4. O-O {[%emt 0:00:52]} Bg7 {[%emt 0:00:13]} 5. Bxc6 {[%emt 0:00:36]} dxc6 {[%emt 0:00:09]} 6. h3 {[%emt 0:00:31]} e5 {[%emt 0:01:08]} 7. d3 {[%emt 0:00:28]} Ne7 {[%emt 0:00:43]} 8. Be3 {[%emt 0:00:26]} b6 {[%emt 0:00:12]} 9. Qd2 {[%emt 0:00:32]} O-O {[%emt 0:01:57]} 10. Bh6 {[%emt 0:03:02]} f6 {[%emt 0:00:55]} 11. Bxg7 {[%emt 0:01:13]} Kxg7 {[%emt 0:00:10]} 12. Nc3 {[%emt 0:00:41]} Be6 {[%emt 0:02:01]} 13. a3 {[%emt 0:06:58]} Qd6 {[%emt 0:08:29]} 14. Ne2 {[%emt 0:08:18]} Rad8 {[%emt 0:05:45]} 15. Qe3 {[%emt 0:08:33]} g5 {[%emt 0:03:49]} 16. b4 {[%emt 0:04:08]} c4 {[%emt 0:01:11]} 17. Rad1 {[%emt 0:10:08]} cxd3 {[%emt 0:02:12]} 18. cxd3 {[%emt 0:02:45]} h5 {[%emt 0:05:11]} 19. d4 {[%emt 0:01:43]} g4 {[%emt 0:00:45]} 20. hxg4 {[%emt 0:03:50]} hxg4 {[%emt 0:00:17]} 21. Nh4 {[%emt 0:01:53]} Rh8 {[%emt 0:04:46]} 22. g3 {[%emt 0:07:30]} Ng6 {[%emt 0:07:39]} 23. dxe5 {[%emt 0:13:17]} Qxe5 {[%emt 0:11:01]} 24. Rxd8 {[%emt 0:04:20]} Rxd8 {[%emt 0:00:21]} 25. Nxg6 {[%emt 0:00:42]} Kxg6 {[%emt 0:00:08]} 26. Rc1 {[%emt 0:03:32]} Rd6 {[%emt 0:06:10]} 27. Kg2 {[%emt 0:00:39]} f5 {[%emt 0:08:08]} 28. exf5+ {[%emt 0:05:26]} Kxf5 {[%emt 0:02:48]} 29. Qf4+ {[%emt 0:03:11]} Qxf4 {[%emt 0:00:22]} 30. Nxf4 {[%emt 0:00:12]} Bb3 {[%emt 0:02:52]} 31. Kg1 {[%emt 0:03:52]} Bd1 {[%emt 0:08:13]} 32. Ng2 {[%emt 0:00:41]} Bf3 {[%emt 0:00:11]} 33. Nh4+ {[%emt 0:00:55]} Kg5 {[%emt 0:02:18]} 34. Nxf3+ {[%emt 0:00:33]} gxf3 {[%emt 0:00:05]} 35. Rc3 {[%emt 0:00:37]} Kg4 {[%emt 0:00:31]} 36. Rc4+ {[%emt 0:00:12]} Kg5 {[%emt 0:00:06]} 37. Rc3 {[%emt 0:00:05]} Kg4 {[%emt 0:01:47]} 38. Rc4+ {[%emt 0:00:06]} Kg5 {[%emt 0:00:10]} 39. Rc3 {[%emt 0:00:04]} 1/2-1/2

[Event "Amsterdam Chess Open 2024"]
[Site "Amsterdam"]
[Date "2024.11.02"]
[Round "3.5"]
[White "Hummel, Paul"]
[Black "Van den Doel, Erik"]
[Result "0-1"]
[ECO "D45"]
[WhiteElo "2149"]
[BlackElo "2557"]
[Annotator "TA"]
[PlyCount "72"]
[EventDate "2024.10.31"]
[EventType "swiss"]
[EventCountry "NED"]
[SourceTitle "playchess.com"]
[Source "ChessBase"]
[SourceQuality "1"]
[TimeControl "5400+30"]

{[%evp 19,72,0,0,0,0,-34,-28,-22,-25,-42,-37,-38,-33,-64,-60,-68,-46,-56,-35,-61,-68,-59,-49,-49,-31,-30,-31,-41,-33,-83,-85,-157,-129,-119,-134,-172,-171,-175,-180,-164,-146,-312,-312,-279,-273,-676,-668,-636,-574,-29975,-12822,-29984,-29985,-29990,-29991]} 1. d4 {[%emt 0:00:21]} d5 {[%emt 0:00:06]} 2. Nf3 {[%emt 0:00:05]} Nf6 {[%emt 0:00:37]} 3. c4 {[%emt 0:00:13]} c6 {[%emt 0:00:15]} 4. Nc3 {[%emt 0:00:07]} e6 {[%emt 0:01:40]} 5. e3 {[%emt 0:03:30]} Nbd7 {[%emt 0:00:45][%cal Bb8d7,Bd7f8,Bf8e6,Be6g5,Bg5e4][%mdl 32]} 6. cxd5 {[%emt 0:01:03]} exd5 {[%emt 0:00:18]} 7. Bd3 {[%emt 0:00:30]} Bd6 {[%emt 0:03:01]} 8. O-O {[%emt 0:00:23]} O-O {[%emt 0:00:02]} 9. Qc2 {[%emt 0:00:08]} Re8 {[%emt 0:01:19]} 10. Re1 {[%emt 0:06:24]} Nf8 {[%emt 0:13:37]} 11. h3 {[%emt 0:01:54] Prevents Bg4.} Be6 {[%emt 0:09:35]} 12. Ng5 {[%emt 0:02:08]} h6 {[%emt 0:01:14]} 13. Nxe6 {[%emt 0:00:07] Black has an edge.} Nxe6 {[%emt 0:00:08]} 14. Bd2 {[%emt 0:06:35]} Ng5 {[%emt 0:06:00]} 15. Re2 {[%emt 0:09:34]} Bc7 {[%emt 0:07:13]} 16. f4 {[%emt 0:10:45]} Nge4 {[%emt 0:01:10]} 17. Be1 {[%emt 0:02:29]} Qd6 {[%emt 0:02:57]} 18. b4 {[%emt 0:07:00]} a6 {[%emt 0:01:51]} (18... Qxb4 $2 19. Nxe4 Qe7 20. Nxf6+ Qxf6 21. Rb1 $18) 19. Rc1 {[%emt 0:01:44]} g5 {[%emt 0:11:29]} (19... Qxb4 $2 20. Nxe4 Qe7 21. Nxf6+ Qxf6 22. Kh1 $18) 20. g3 {[%emt 0:00:17]} Kh8 {[%emt 0:00:35]} (20... Qxb4 $2 21. Nxe4 Qe7 22. Nxf6+ Qxf6 23. Rb1 $18) 21. Nxe4 {[%emt 0:05:02]} Nxe4 {[%emt 0:00:53]} 22. a4 {[%emt 0:03:44]} Qg6 $36 {[%emt 0:04:51][%mdl 2048] Black has some pressure.} 23. Rg2 {[%emt 0:04:08]} gxf4 {[%emt 0:07:30]} 24. exf4 {[%emt 0:01:15]} (24. gxf4 $15 Qh5 25. Bxe4 Rxe4 26. Rg3) 24... Bb6 $17 {[%emt 0:03:41] Black is more active.} 25. b5 {[%emt 0:10:34]} ({Better is} 25. Bf2) 25... axb5 {[%emt 0:01:05]} 26. axb5 {[%emt 0:00:01]} Bxd4+ {[%emt 0:00:11]} 27. Kh2 {[%emt 0:00:01]} c5 {[%emt 0:00:17]} 28. Bc3 {[%emt 0:00:32]} Qf6 {[%emt 0:01:10]} ({Much worse is} 28... Bxc3 $6 29. Bxe4 dxe4 (29... Qxe4 30. Qxc3+ d4 31. Qxc5 $11) 30. Qxc3+ Kh7 31. Qxc5 $11) 29. Bxd4 {[%emt 0:01:45]} cxd4 {[%emt 0:00:14]} 30. Qb3 $2 {[%emt 0:06:13] [#] Loses the game.} (30. Re1 $17 {was worth a try.}) 30... Nc3 $19 {[%emt 0:00:58]} 31. Bb1 {[%emt 0:02:36]} Re3 {[%emt 0:02:13]} 32. Rxc3 $2 {[%emt 0:00:09]} (32. Qc2 Kg7 (32... Nxb5 33. Qh7#) 33. Qh7+ Kf8 34. Qc2) 32... dxc3 {[%emt 0:02:41]} 33. Qxd5 {[%emt 0:00:02]} Rg8 {[%emt 0:04:34]} 34. Qxb7 {[%emt 0:01:36]} Qg7 {[%emt 0:00:18][%cal Re3g3]} 35. g4 {[%emt 0:00:49]} Qf6 {[%emt 0:01:00]} 36. Rf2 {[%emt 0:00:53]} Qh4 {[%emt 0:01:09][%csl LRf2,LRg4,LRh3] Weighted Error Value: White=0.71/Black=0.08 (flawless) .  Loses game:     	White=1     	---        Mistake:       	White=3     	---        Inaccurate:     	White=4     	---        OK:         	White=7     	Black=10     Best:        	---       	Black=2} 0-1

[Event "Amsterdam Chess Open 2024"]
[Site "Amsterdam"]
[Date "2024.11.02"]
[Round "3.6"]
[White "Coenen, Eduard"]
[Black "Brink, Barry"]
[Result "1/2-1/2"]
[ECO "D00"]
[WhiteElo "2136"]
[BlackElo "2342"]
[Annotator "RC"]
[PlyCount "96"]
[EventDate "2024.10.31"]
[EventType "swiss"]
[EventCountry "NED"]
[SourceTitle "playchess.com"]
[Source "ChessBase"]
[SourceQuality "1"]
[TimeControl "5400+30"]

1. d4 {[%emt 0:00:30]} Nf6 {[%emt 0:11:14]} 2. c3 {[%emt 0:00:09]} d5 {[%emt 0:00:27]} 3. Bf4 {[%emt 0:00:26]} c5 {[%emt 0:00:09]} 4. e3 {[%emt 0:00:08]} Nc6 {[%emt 0:00:09]} 5. Be2 {[%emt 0:04:07]} Qb6 {[%emt 0:03:06]} 6. Na3 {[%emt 0:05:57]} a6 {[%emt 0:03:13]} 7. Qb3 {[%emt 0:05:46]} Qxb3 {[%emt 0:02:43]} 8. axb3 {[%emt 0:00:15]} Bf5 {[%emt 0:00:16]} 9. Nf3 {[%emt 0:05:52]} cxd4 {[%emt 0:03:42]} 10. exd4 {[%emt 0:02:03]} h6 {[%emt 0:07:20]} 11. b4 {[%emt 0:02:18]} g5 {[%emt 0:00:33]} 12. Be5 {[%emt 0:02:37]} Bg7 {[%emt 0:05:17]} 13. O-O {[%emt 0:01:44]} O-O {[%emt 0:03:29]} 14. b5 {[%emt 0:00:48]} Nxe5 {[%emt 0:04:42]} 15. Nxe5 {[%emt 0:08:28]} Nd7 {[%emt 0:03:27]} 16. Nxd7 {[%emt 0:07:24]} Bxd7 {[%emt 0:00:09]} 17. bxa6 {[%emt 0:00:52]} bxa6 {[%emt 0:00:12]} 18. Nc2 {[%emt 0:00:48]} a5 {[%emt 0:00:12]} 19. Ra2 {[%emt 0:02:13]} Rab8 {[%emt 0:11:44]} 20. Rfa1 {[%emt 0:04:16]} Rb6 {[%emt 0:05:06]} 21. Kf1 {[%emt 0:06:53]} Rfb8 {[%emt 0:02:00]} 22. Ne3 {[%emt 0:07:34]} Rxb2 {[%emt 0:06:49]} 23. Rxb2 {[%emt 0:03:18]} Rxb2 {[%emt 0:00:15]} 24. Nd1 {[%emt 0:02:50]} Rb8 {[%emt 0:01:42]} 25. Rxa5 {[%emt 0:00:08]} e6 {[%emt 0:00:25]} 26. Ra7 {[%emt 0:00:47]} Be8 {[%emt 0:01:59]} 27. g4 {[%emt 0:00:25]} Bf8 {[%emt 0:01:33]} 28. Bd3 {[%emt 0:01:27]} Bd6 {[%emt 0:00:15]} 29. h3 {[%emt 0:00:28]} Kg7 {[%emt 0:01:35]} 30. Ke2 {[%emt 0:01:49]} Bf4 {[%emt 0:02:25]} 31. Ra2 {[%emt 0:01:56]} Rb7 {[%emt 0:01:44]} 32. Ne3 {[%emt 0:02:55]} f6 {[%emt 0:01:09]} 33. c4 {[%emt 0:00:53]} dxc4 {[%emt 0:00:48]} 34. Bxc4 {[%emt 0:00:42]} Bb5 {[%emt 0:01:07]} 35. Bxb5 {[%emt 0:05:35]} Rxb5 {[%emt 0:00:06]} 36. Ra7+ {[%emt 0:01:33]} Kg6 {[%emt 0:00:06]} 37. Ra6 {[%emt 0:00:32]} Bxe3 {[%emt 0:00:25]} 38. fxe3 {[%emt 0:00:50]} e5 {[%emt 0:03:04]} 39. dxe5 {[%emt 0:01:02]} Rxe5 {[%emt 0:00:12]} 40. Kf3 {[%emt 0:00:21]} Rb5 {[%emt 0:00:05]} 41. Rc6 {[%emt 0:01:05]} Rb8 {[%emt 0:00:34]} 42. Ra6 {[%emt 0:00:19]} Rf8 {[%emt 0:01:07]} 43. Kg3 {[%emt 0:01:25]} Re8 {[%emt 0:01:01]} 44. Kf3 {[%emt 0:00:22]} Rh8 {[%emt 0:00:06]} 45. Kg3 {[%emt 0:00:47]} h5 {[%emt 0:00:05]} 46. gxh5+ {[%emt 0:01:28]} Rxh5 {[%emt 0:00:06]} 47. Ra4 {[%emt 0:01:43]} f5 {[%emt 0:01:28]} 48. h4 {[%emt 0:01:34]} gxh4+ {[%emt 0:01:44]} 1/2-1/2